bitfinex-derivatives/quotes_ETHF0:USTF0_20250217
["timestamp","ask_amount","ask_price","bid_price","bid_amount"]
[1739757817067,3.73566,2681.8,2681.7,0.74569]
[1739757817270,3.73566,2681.8,2681.6,1.2986]
[1739757817670,0.74569,2681.7,2681.5,3.2078]
[1739757817871,0.74571,2681.6,2681.5,3.2078]
[1739757818875,1.34141,2681.7,2681.5,3.95352]
[1739757819071,1.34141,2681.7,2681.6,0.74571]
[1739757819271,1.34141,2681.7,2681.5,3.2078]
[1739757819477,0.74571,2681.6,2681.5,0.74572]
[1739757819868,0.74571,2681.6,2681.5,3.95352]
[1739757820173,0.74571,2681.6,2681.5,3.2078]
[1739757820765,0.74571,2681.6,2681.5,3.95354]
[1739757821868,1.34139,2681.7,2681.6,0.74571]
[1739757822065,0.74571,2681.6,2681.5,3.95353]
[1739757822875,2.99,2681.8,2681.6,0.7457]
[1739757823070,0.74569,2681.7,2681.6,0.7457]
[1739757823375,2.99,2681.8,2681.5,3.2078]
[1739757823574,0.74571,2681.7,2681.5,3.95352]
[1739757823779,2.99,2681.8,2681.5,3.2078]
[1739757823979,0.74571,2681.6,2681.5,3.2078]
[1739757824979,0.74571,2681.6,2681.5,3.95354]
[1739757825673,0.7457,2681.7,2681.6,0.74571]
[1739757825880,0.7457,2681.7,2681.5,3.95352]
[1739757826581,0.74571,2681.6,2681.5,3.95352]
[1739757829189,2.99,2681.8,2681.5,3.2078]
[1739757829482,0.74571,2681.6,2681.5,3.95353]
[1739757830083,0.74575,2681.5,2681.4,0.74575]
[1739757830286,0.74578,2681.4,2681.3,0.7458]
[1739757830584,3.16378,2681.4,2681.3,0.7458]
[1739757830784,0.74584,2681.2,2681.0,0.74587]
[1739757831182,0.74584,2681.2,2680.9,3.2078]
[1739757831378,0.74584,2681.2,2681.1,0.74585]
[1739757831578,0.74584,2681.2,2681.0,0.74586]
[1739757831978,0.74584,2681.2,2681.1,0.74585]
[1739757832482,1.7122,2681.3,2681.1,0.74585]
[1739757832785,0.74583,2681.2,2681.1,0.74585]
[1739757833485,0.74583,2681.2,2680.9,3.2078]
[1739757833685,2.45801,2681.3,2680.9,3.2078]
[1739757833886,2.45801,2681.3,2681.2,0.74583]
[1739757834494,2.45801,2681.3,2681.1,0.74584]
[1739757834681,1.7122,2681.3,2681.1,0.74584]
[1739757834887,2.45802,2681.3,2681.1,0.74584]
[1739757835090,2.45802,2681.3,2681.2,0.74583]
[1739757836884,1.7122,2681.3,2681.2,0.74583]
[1739757837190,1.1588,2681.3,2681.2,0.74583]
[1739757837591,0.5862,2681.3,2681.2,0.74583]
[1739757837790,0.5862,2681.3,2681.2,3.95363]
[1739757838188,3.0042,2681.3,2681.2,3.95363]
[1739757838686,0.5862,2681.3,2681.2,3.95363]
[1739757838891,6.86847,2681.8,2681.6,0.7457]
[1739757839095,2.418,2681.7,2681.6,0.7457]
[1739757839395,3.7529,2681.8,2681.7,0.74569]
[1739757839687,6.1709,2681.8,2681.7,0.74569]
[1739757839891,6.91656,2681.8,2681.3,1.1579]
[1739757840388,0.7457,2681.7,2681.5,0.74573]
[1739757841397,0.74572,2681.6,2681.4,0.74576]
[1739757841895,0.74575,2681.5,2681.3,1.90368]
[1739757842189,2.418,2681.4,2681.3,1.9037]
[1739757842789,1.29078,2681.8,2681.5,0.74573]
[1739757842992,3.1637,2681.7,2681.5,0.74573]
[1739757843787,2.418,2681.7,2681.5,3.2078]
[1739757843992,2.418,2681.7,2681.6,0.74571]
[1739757844190,2.418,2681.7,2681.6,1.29751]
[1739757845588,3.51019785,2682.0,2681.9,0.74563]
[1739757845789,5.92819785,2682.0,2681.9,0.74563]
[1739757846398,3.01319785,2682.0,2681.9,0.74563]
[1739757847097,3.75879785,2682.0,2681.9,0.74563]
[1739757847394,0.74563,2681.9,2681.8,0.5768]
[1739757848597,3.01319785,2682.0,2681.8,0.5768]
[1739757848792,0.00559785,2682.0,2681.9,0.74563]
[1739757849197,0.00559785,2682.0,2681.8,3.7846]
[1739757849399,1.29230785,2682.0,2681.8,4.53025]
[1739757849695,0.54669785,2682.0,2681.9,0.74563]
[1739757849891,0.00559785,2682.0,2681.9,0.74563]
[1739757851090,3.2078,2682.4,2681.9,0.74563]
[1739757851091,2.418,2682.3,2682.2,0.74555]
[1739757851792,4.2912,2682.7,2682.2,1.31955]
[1739757851997,4.2912,2682.7,2682.5,0.74545]
[1739757851998,2.418,2682.6,2682.5,0.74545]
[1739757852193,3.2078,2682.7,2682.6,0.74544]
[1739757852500,5.6258,2682.7,2682.6,0.74544]
[1739757853801,2.418,2682.7,2682.6,0.74544]
[1739757854002,2.418,2682.7,2682.3,0.00559785]
[1739757854397,2.417,2682.7,2682.3,3.49207521]
[1739757854897,2.417,2682.7,2682.6,0.74544]
[1739757857807,0.00559785,2682.8,2682.7,0.74541]
[1739757858108,0.00559785,2682.8,2682.7,4.50631]
[1739757860313,3.78252,2683.4,2682.7,4.50631]
[1739757860314,5.64132,2683.4,2682.7,17.55818447]
[1739757860513,5.64132,2683.4,2683.3,0.74524]
[1739757861015,2.43352,2683.4,2683.3,0.74524]
[1739757861513,0.01652,2683.4,2683.3,0.74524]
[1739757862610,0.00559785,2683.6,2683.5,0.74519]
[1739757862818,3.2078,2684.1,2683.5,6.14087736]
[1739757863007,0.74506,2684.0,2683.5,6.14087736]
[1739757863203,2.93307736,2683.7,2682.9,3.2078]
[1739757863420,2.9831,2683.6,2683.2,3.2078]
[1739757863609,0.74519,2683.5,2683.2,3.2078]
[1739757863805,0.74524,2683.3,2683.2,3.2078]
[1739757864123,0.74527,2683.2,2683.1,0.00559785]
[1739757864416,3.18227,2683.2,2683.1,0.00559785]
[1739757864617,43.98227,2683.2,2683.1,0.00559785]
[1739757865318,3.18227,2683.2,2683.1,0.00559785]
[1739757865620,3.18227,2683.2,2683.1,0.00277468]
[1739757866121,2.435,2683.2,2683.1,0.00277468]
[1739757867007,3.18027,2683.2,2683.1,0.00277468]
[1739757867413,3.18227,2683.2,2683.1,0.00277468]
[1739757870019,2.437,2683.2,2683.1,0.00277468]
[1739757870417,3.18227,2683.2,2683.1,0.00277468]
[1739757871416,0.74527,2683.2,2683.1,0.00277468]
[1739757871717,3.17827,2683.2,2683.1,0.00277468]
[1739757872816,0.74535,2682.9,2682.8,3.2078]
[1739757873525,1.29265,2682.9,2682.8,3.2078]
[1739757873918,1.29265,2682.9,2682.4,1.33599]
[1739757873919,0.74546,2682.5,2682.4,3.2078]
[1739757874125,3.18046,2682.5,2682.4,3.2078]
[1739757874723,0.74552,2682.3,2682.2,0.00559785]
[1739757875422,3.67859736,2682.3,2682.2,0.00559785]
[1739757876520,4.23949736,2682.3,2682.2,0.00559785]
[1739757880131,7.44729736,2682.3,2682.2,0.00559785]
[1739757882431,0.74566,2681.8,2681.7,0.5814]
[1739757882622,0.74574,2681.5,2681.4,3.7836]
[1739757883024,0.5844,2681.7,2681.4,3.7836]
[1739757883227,0.74574,2681.5,2681.4,3.2078]
[1739757885034,0.7458,2681.3,2681.2,0.00559785]
[1739757885230,6.11287736,2681.3,2681.2,0.00559785]
[1739757886837,9.32067736,2681.3,2681.2,0.00559785]
[1739757889129,0.74591,2680.9,2680.8,1.1219]
[1739757889333,2.434,2680.9,2680.8,1.1219]
[1739757889533,3.17991,2680.9,2680.8,1.1219]
[1739757894740,0.74596,2680.7,2680.6,0.00559785]
[1739757895042,6.88683736,2680.7,2680.6,0.00559785]
[1739757898255,3.95376,2680.7,2680.6,0.00559785]
[1739757898442,3.2078,2680.7,2680.6,0.00559785]
[1739757898643,2.432,2680.9,2680.8,0.74593]
[1739757899339,2.432,2680.9,2680.7,0.5869]
[1739757899536,2.432,2680.9,2680.7,1.33285]
[1739757900249,2.432,2680.9,2680.7,0.5869]
[1739757900545,0.74596,2680.7,2680.6,0.00559785]
[1739757900744,3.67903736,2680.7,2680.6,0.00559785]
[1739757901046,44.47903736,2680.7,2680.6,0.00559785]
[1739757901649,0.74602,2680.5,2680.4,0.5605]
[1739757901946,0.74613,2680.1,2680.0,0.5566]
[1739757902141,3.18013,2680.1,2680.0,0.5566]
[1739757902543,2.434,2680.1,2680.0,0.5566]
[1739757903548,3.18013,2680.1,2680.0,0.5566]
[1739757903748,2.434,2680.1,2680.0,0.5566]
[1739757904144,2.434,2680.1,2680.0,1.30276]
[1739757904745,2.434,2680.1,2680.0,0.5566]
[1739757905945,3.18013,2680.1,2680.0,0.5566]
[1739757906145,2.434,2680.1,2680.0,0.5566]
[1739757906452,2.434,2680.1,2680.0,1.30276]
[1739757907850,0.00559785,2680.3,2680.1,0.74612]
[1739757908157,2.43459785,2680.3,2680.2,1.3285]
[1739757908349,0.00559785,2680.3,2680.2,1.3285]
[1739757910344,5.6388,2680.5,2680.2,0.5824]
[1739757910546,5.6388,2680.5,2680.4,0.74605]
[1739757910846,3.2078,2680.5,2680.3,0.74606]
[1739757911046,3.2078,2680.5,2680.4,0.5529]
[1739757911246,3.2078,2680.5,2680.4,1.29895]
[1739757911651,3.2078,2680.5,2680.4,0.5529]
[1739757911846,3.2078,2680.5,2680.2,0.5824]
[1739757912047,0.74608,2680.3,2680.2,0.5824]
[1739757912451,0.74613,2680.1,2680.0,0.5566]
[1739757912854,0.74612,2680.2,2680.0,1.30276]
[1739757913156,2.93307736,2680.3,2680.0,1.30276]
[1739757913450,3.0229,2680.4,2680.0,0.5566]
[1739757913654,0.74613,2680.1,2680.0,0.5566]
[1739757914449,0.74613,2680.1,2679.9,3.7923]
[1739757914450,3.2078,2680.2,2679.9,0.5845]
[1739757914652,0.74616,2680.0,2679.9,0.5845]
[1739757914856,3.17916,2680.0,2679.9,0.5845]
[1739757915055,2.433,2680.0,2679.9,0.5845]
[1739757915249,2.433,2680.0,2679.9,1.33069]
[1739757918358,3.7663,2680.5,2679.9,0.5845]
[1739757918552,3.2078,2680.5,2680.4,0.74605]
[1739757918858,2.435,2680.5,2680.4,0.74605]
[1739757919763,3.18102,2680.5,2680.4,0.74605]
[1739757920063,2.435,2680.5,2680.4,0.74605]
[1739757920461,2.435,2680.5,2680.0,3.8008]
[1739757920765,0.74619,2679.9,2679.8,0.00559785]
[1739757920950,3.19119,2679.9,2679.8,0.00559785]
[1739757921150,2.447,2680.0,2679.8,0.00559785]
[1739757921352,2.447,2680.0,2679.9,0.74619]
[1739757921859,2.447,2680.3,2680.2,0.74609]
[1739757922056,2.449,2680.5,2680.3,0.74605]
[1739757922364,3.19503,2680.5,2680.3,0.74605]
[1739757922762,0.74609,2680.3,2680.1,1.90513]
[1739757923063,2.449,2680.5,2680.0,3.2078]
[1739757923265,0.74613,2680.2,2680.0,3.95395]
[1739757923562,0.74613,2680.2,2680.0,3.95396]
[1739757923755,0.5596,2680.3,2680.0,3.2078]
[1739757923956,0.74613,2680.2,2680.0,3.2078]
[1739757924359,0.74613,2680.1,2680.0,3.2078]
[1739757924554,3.19613,2680.1,2680.0,3.2078]
[1739757928062,2.45,2680.1,2679.8,0.00559785]
[1739757928272,0.74619,2679.9,2679.8,0.00559785]
[1739757929869,9.26694265,2680.1,2679.1,3.2078]
[1739757930065,1.8657,2679.6,2679.1,3.2078]
[1739757930273,3.0123,2679.5,2679.1,3.2078]
[1739757930463,0.74637,2679.3,2679.1,3.2078]
[1739757930767,0.5993,2679.2,2679.1,3.95421]
[1739757932368,0.5993,2679.2,2679.1,0.74641]
[1739757936160,3.8026,2679.8,2679.0,3.2078]
[1739757936365,3.78176,2679.7,2679.5,0.74629]
[1739757936557,0.74627,2679.6,2679.1,0.5846]
[1739757936763,3.0355,2679.7,2679.1,0.5846]
[1739757936973,0.74632,2679.5,2679.0,3.2078]
[1739757937174,3.0355,2679.7,2679.2,0.74637]
[1739757937472,0.74634,2679.4,2679.2,0.74636]
[1739757937667,6.64464265,2679.7,2679.2,0.74636]
[1739757937967,0.74635,2679.3,2679.1,0.74638]
[1739757938174,0.5768,2679.2,2679.1,0.74639]
[1739757938870,2.445,2679.3,2679.2,0.74638]
[1739757939070,3.19136,2679.3,2679.2,0.74638]
[1739757940171,2.445,2679.3,2679.2,0.74638]
[1739757941073,2.4419598,2679.3,2679.2,0.74638]
[1739757942168,3.1883098,2679.3,2679.2,0.74638]
[1739757943174,2.4419598,2679.3,2679.2,0.74638]
[1739757945573,2.4419598,2679.3,2679.0,3.2078]
[1739757945774,0.74641,2679.2,2679.0,3.95423]
[1739757946078,0.5447,2679.1,2679.0,3.95423]
[1739757947178,2.44755765,2679.3,2679.2,0.74638]
[1739757949077,3.19390765,2679.3,2679.2,0.74638]
[1739757949280,0.74639,2679.2,2679.1,0.7464]
[1739757950673,5.38128518,2679.3,2679.0,3.2078]
[1739757951080,0.74639,2679.2,2679.1,0.74638]
[1739757951274,6.12765518,2679.3,2679.2,0.74638]
[1739757951677,5.38128518,2679.3,2679.0,3.2078]
[1739757952177,6.12764518,2679.3,2679.2,0.74638]
[1739757952384,0.74639,2679.2,2679.1,0.74639]
[1739757953182,0.74642,2679.1,2679.0,0.74643]
[1739757953382,1.28682,2679.1,2679.0,0.74643]
[1739757953585,0.5404,2679.1,2679.0,0.74643]
[1739757955686,1.1138,2679.1,2679.0,0.74643]
[1739757960590,1.1138,2679.1,2678.9,0.55199785]
[1739757960891,1.1138,2679.1,2679.0,0.74644]
[1739757961686,2.44755765,2679.3,2678.9,0.55199785]
[1739757961890,2.44755765,2679.3,2679.2,0.74638]
[1739757962490,2.43259785,2679.3,2679.2,0.74638]
[1739757963391,0.00559785,2679.3,2679.2,0.74638]
[1739757963690,2.43159785,2679.3,2679.1,0.74639]
[1739757963890,2.43159785,2679.3,2678.9,0.55199785]
[1739757964090,0.74639,2679.2,2679.0,0.74641]
[1739757964398,0.5816,2679.2,2679.1,0.74641]
[1739757964594,5.36532538,2679.3,2679.2,0.74638]
[1739757964792,2.43159785,2679.3,2679.2,0.74638]
[1739757968694,2.43159785,2679.3,2678.9,3.75979785]
[1739757968892,5.36532538,2679.3,2678.9,3.21339785]
[1739757969095,0.5618,2679.2,2678.9,3.21339785]
[1739757969497,41.3771,2679.1,2679.0,0.74644]
[1739757970098,0.5771,2679.1,2679.0,0.74644]
[1739757970302,5.36532538,2679.3,2678.9,3.21339785]
[1739757970605,6.11167538,2679.3,2679.2,0.74638]
[1739757971001,46.16532538,2679.3,2679.2,0.74638]
[1739757971504,46.91167538,2679.3,2679.2,0.74638]
[1739757971707,46.16532538,2679.3,2679.2,0.74638]
[1739757971902,5.36532538,2679.3,2679.2,0.74638]
[1739757973410,5.36532538,2679.3,2678.9,3.80829785]
[1739757973597,6.11168538,2679.3,2679.2,0.74638]
[1739757973798,6.11168538,2679.3,2678.9,3.80829785]
[1739757973998,5.36532538,2679.3,2679.2,0.74638]
[1739757974710,6.11167538,2679.3,2679.2,0.74638]
[1739757974911,5.36532538,2679.3,2678.9,3.80829785]
[1739757975204,5.36532538,2679.3,2678.9,3.21339785]
[1739757975414,0.7464,2679.2,2679.0,0.74643]
[1739757976507,0.7464,2679.2,2678.9,3.21339785]
[1739757976709,0.7464,2679.2,2679.0,0.74643]
[1739757976908,8.57312538,2679.3,2678.9,3.95984785]
[1739757977302,0.74641,2679.2,2678.9,3.95984785]
[1739757977500,0.74641,2679.1,2679.0,0.74644]
[1739757977907,0.7464,2679.2,2679.0,0.74641]
[1739757978106,9.31948538,2679.3,2679.1,0.74641]
[1739757978311,8.57312538,2679.3,2679.1,0.74641]
[1739757978509,8.57312538,2679.3,2678.9,3.21339785]
[1739757978908,9.31949538,2679.3,2679.0,0.74644]
[1739757979114,8.57312538,2679.3,2679.1,0.7464]
[1739757979310,8.57312538,2679.3,2679.2,0.74638]
[1739757981311,0.74639,2679.2,2679.0,0.74643]
[1739757981519,8.57312538,2679.3,2678.9,3.21339785]
[1739757981720,8.57312538,2679.3,2679.2,0.74638]
[1739757984321,9.31947538,2679.3,2679.2,0.74638]
[1739757985015,9.31947538,2679.3,2678.9,3.21339785]
[1739757985016,9.31947538,2679.3,2679.1,0.7464]
[1739757985220,8.57312538,2679.3,2679.0,0.74643]
[1739757985421,0.7464,2679.2,2679.0,0.74643]
[1739757985613,9.31949538,2679.3,2679.1,0.7464]
[1739757985917,8.57312538,2679.3,2678.9,3.21339785]
[1739757986120,0.7464,2679.2,2679.0,0.74642]
[1739757986317,0.74639,2679.2,2679.0,0.74642]
[1739757986517,8.57312538,2679.3,2678.9,3.21339785]
[1739757986714,9.31949538,2679.3,2679.1,0.7464]
[1739757987121,8.57312538,2679.3,2679.1,0.7464]
[1739757987515,8.57312538,2679.3,2678.9,3.21339785]
[1739757987709,0.74639,2679.2,2679.0,0.74642]
[1739757987919,8.57312538,2679.3,2678.9,3.21339785]
[1739757988118,8.57312538,2679.3,2679.1,0.7464]
[1739757988321,8.57312538,2679.3,2679.2,0.74638]
[1739757989624,0.00559785,2679.3,2679.2,0.74638]
[1739757989823,2.42659785,2679.3,2679.2,0.74638]
[1739757994518,0.00559785,2679.3,2679.2,0.74638]
[1739757995615,0.00559785,2679.3,2679.2,3.95418]
[1739757996122,20.682,2680.3,2679.5,1.8657]
[1739757996324,4.05482753,2680.4,2680.2,0.7461]
[1739757996627,2.421,2680.3,2679.9,1.86548]
[1739757996921,2.421,2680.4,2680.3,0.74608]
[1739757997226,2.42659785,2680.4,2680.3,0.74608]
[1739757997626,0.00559785,2680.4,2680.3,1.29758]
[1739757997821,0.00559785,2680.4,2680.3,1.88868]
[1739757998720,0.00559785,2680.4,2680.2,3.2078]
[1739757998721,2.93932538,2680.4,2680.2,3.2078]
[1739757998920,2.93932538,2680.4,2679.9,3.2078]
[1739757999125,2.93372753,2680.1,2679.9,3.2078]
[1739757999322,0.5703,2680.0,2679.7,0.74623]
[1739757999525,2.93372753,2679.8,2679.5,0.5691]
[1739757999720,3.0095,2679.7,2679.5,1.31538]
[1739757999937,3.0095,2679.7,2679.5,1.31537]
[1739758000231,3.0095,2679.7,2679.6,0.74627]
[1739758000429,3.0095,2679.7,2679.5,0.5691]
[1739758000430,2.427,2679.7,2679.5,0.5691]
[1739758000636,2.427,2679.7,2679.6,0.74627]
[1739758001826,2.427,2679.7,2679.5,0.5691]
[1739758001827,0.5703,2680.0,2679.9,0.74619]
[1739758002032,2.427,2680.0,2679.9,0.74619]
[1739758002728,1.1755,2680.3,2680.2,0.7461]
[1739758002921,3.6055,2680.3,2680.1,0.74612]
[1739758003122,3.6055,2680.3,2679.6,0.5754]
[1739758003332,2.93372753,2680.1,2679.9,0.74619]
[1739758003525,2.93372753,2680.1,2679.9,0.74618]
[1739758003733,2.93372753,2680.1,2680.0,0.74616]
[1739758004234,2.93372753,2680.1,2679.8,0.7462]
[1739758005426,2.93372753,2680.1,2679.7,0.5608]
[1739758005632,2.93372753,2680.1,2680.0,0.74616]
[1739758005835,2.93372753,2680.1,2679.7,0.5608]
[1739758006029,2.93372753,2680.1,2680.0,0.74616]
[1739758006633,2.93372753,2680.1,2679.9,0.74616]
[1739758006831,2.93372753,2680.1,2679.7,0.5608]
[1739758007045,3.67987753,2680.1,2679.7,0.5608]
[1739758007330,2.93372753,2679.8,2679.7,0.74622]
[1739758008032,4.09402753,2679.8,2679.7,0.74622]
[1739758008233,4.09402753,2679.8,2679.5,3.2078]
[1739758008436,0.5641,2679.7,2679.5,3.2078]
[1739758008628,0.5641,2679.7,2679.6,0.74627]
[1739758008825,0.5641,2679.7,2679.5,3.2078]
[1739758009030,2.93372753,2679.6,2678.8,3.2078]
[1739758009225,3.7719,2679.7,2678.9,0.75206785]
[1739758009226,2.93372753,2679.0,2678.9,0.75206785]
[1739758009434,5.37672753,2679.0,2678.9,0.75206785]
[1739758010231,5.37672753,2679.0,2678.9,1.33336785]
[1739758010440,2.443,2679.0,2678.9,1.33336785]
[1739758014636,1.32374,2679.4,2679.2,0.74636]
[1739758014841,3.18536,2679.3,2679.1,0.7464]
[1739758015045,0.74641,2679.2,2679.0,0.5506]
[1739758015341,1.33191,2679.2,2678.9,0.58689785]
[1739758015542,0.5855,2679.2,2679.1,0.74641]
[1739758015734,5.37272753,2679.3,2678.9,0.58689785]
[1739758016042,5.37272753,2679.3,2679.2,0.74638]
[1739758016736,6.11907753,2679.3,2679.2,0.74638]
[1739758016938,6.11907753,2679.3,2678.9,0.58689785]
[1739758017140,6.11907753,2679.3,2679.1,0.7464]
[1739758017741,0.74639,2679.2,2679.0,0.74643]
[1739758018043,6.14152753,2679.3,2679.2,0.74638]
[1739758018244,0.5774,2679.4,2678.9,2.45301785]
[1739758018441,2.437,2679.3,2679.0,1.8661]
[1739758018741,2.437,2679.3,2679.2,0.74638]
[1739758020840,2.437,2679.3,2678.9,0.58689785]
[1739758021036,6.11708753,2679.3,2679.2,0.74638]
[1739758021238,5.37072753,2679.3,2679.2,0.74638]
[1739758021540,5.37072753,2679.3,2678.9,0.58689785]
[1739758021741,5.37072753,2679.3,2679.2,0.74638]
[1739758022337,2.93372753,2679.3,2679.2,0.74638]
[1739758022538,2.433,2679.3,2679.2,0.74638]
[1739758023634,5.6418,2679.5,2679.4,0.74633]
[1739758025038,5.6408,2679.5,2679.4,0.74633]
[1739758025739,3.2078,2679.5,2679.4,0.74633]
[1739758026046,3.0175,2679.6,2679.5,0.7463]
[1739758028740,3.76377,2679.6,2679.5,0.7463]
[1739758028947,3.76379,2679.6,2679.5,0.7463]
[1739758029443,3.0175,2679.6,2679.5,0.7463]
[1739758030942,5.95122753,2679.6,2679.3,0.74633]
[1739758031147,5.95122753,2679.6,2679.1,3.2078]
[1739758031444,5.95122753,2679.6,2679.3,0.74635]
[1739758031643,0.74632,2679.5,2679.3,0.74635]
[1739758032045,0.564,2679.4,2679.3,0.74635]
[1739758032350,1.31033,2679.4,2679.3,0.74635]
[1739758032544,0.564,2679.4,2679.0,1.1733]
[1739758032848,2.93372753,2679.3,2679.2,0.74638]
[1739758033349,0.564,2679.4,2679.2,0.74636]
[1739758033547,0.564,2679.4,2679.0,1.1733]
[1739758033951,0.564,2679.4,2679.3,0.74635]
[1739758034346,0.564,2679.4,2679.0,1.1733]
[1739758034645,1.31034,2679.4,2679.3,0.74635]
[1739758034847,0.74637,2679.3,2679.1,0.7464]
[1739758035050,5.36072753,2679.2,2679.1,0.7464]
[1739758035355,0.74641,2679.1,2678.9,0.75205785]
[1739758035651,1.30751,2679.1,2678.9,0.75205785]
[1739758035950,0.5907,2679.0,2678.9,0.00559785]
[1739758036749,0.5907,2679.0,2678.9,0.75206785]
[1739758038949,1.33714,2679.0,2678.9,0.00559785]
[1739758039255,0.5907,2679.0,2678.9,0.00559785]
[1739758039457,0.5907,2679.0,2678.9,0.75206785]
[1739758041557,1.33714,2679.0,2678.9,0.75206785]
[1739758042656,0.5907,2679.0,2678.9,0.75206785]
[1739758043157,1.33714,2679.0,2678.9,0.75206785]
[1739758043358,1.33714,2679.0,2678.9,0.00559785]
[1739758043956,4.54494,2679.0,2678.9,0.00559785]
[1739758044552,45.34494,2679.0,2678.9,0.00559785]
[1739758045951,4.54494,2679.0,2678.9,0.00559785]
[1739758049662,9.7985,2679.0,2678.1,3.2078]
[1739758049862,2.93372753,2678.5,2678.3,0.5611]
[1739758050061,2.93372753,2678.5,2678.3,1.30772]
[1739758050062,2.423,2678.4,2678.3,1.30772]
[1739758050365,6.7135,2679.0,2678.4,1.86652]
[1739758050563,3.7985,2679.0,2678.9,0.74647]
[1739758050861,0.00559785,2679.2,2678.7,5.07970785]
[1739758051066,2.434,2679.1,2678.8,1.1553]
[1739758051365,2.434,2679.1,2679.0,0.74644]
[1739758051766,2.43959785,2679.2,2679.1,0.74641]
[1739758053462,0.00559785,2679.2,2679.1,3.95421]
[1739758068380,0.00559785,2679.2,2679.1,3.2078]
[1739758068675,0.74641,2679.1,2679.0,0.74642]
[1739758068883,2.424,2679.1,2678.8,4.3631]
[1739758069179,4.87856753,2679.0,2678.8,4.3631]
[1739758069380,4.13212753,2679.0,2678.9,0.74647]
[1739758070172,4.13212753,2679.0,2678.8,4.3631]
[1739758070379,4.87857753,2679.0,2678.8,5.10958]
[1739758070569,4.87857753,2679.0,2678.9,0.74647]
[1739758070770,4.87857753,2679.0,2678.8,4.3631]
[1739758070967,4.13212753,2679.0,2678.8,3.2078]
[1739758071172,0.74647,2678.9,2678.8,3.2078]
[1739758071986,0.74647,2678.9,2678.7,0.75210785]
[1739758073680,0.74647,2678.9,2678.7,0.00559785]
[1739758073874,4.13212753,2679.0,2678.7,0.00559785]
[1739758073875,0.74649,2678.8,2678.7,0.00559785]
[1739758074979,44.0078,2678.9,2678.1,3.2078]
[1739758075184,2.93372753,2678.3,2678.1,3.95447]
[1739758075381,2.9955,2678.2,2678.1,3.95447]
[1739758079578,2.9955,2678.2,2678.1,3.2078]
[1739758079778,2.9955,2678.2,2678.1,3.95449]
[1739758081482,3.74217,2678.2,2677.9,0.00559785]
[1739758081685,3.74217,2678.2,2678.0,0.74671]
[1739758082287,3.74217,2678.2,2677.9,0.75232785]
[1739758082474,3.74217,2678.2,2677.9,0.00559785]
[1739758082678,3.68044753,2678.0,2677.9,0.00559785]
[1739758083076,2.93372753,2678.0,2677.9,0.00559785]
[1739758083389,2.93372753,2678.0,2677.9,0.75233785]
[1739758083583,2.93372753,2678.0,2677.9,1.31483785]
[1739758086082,2.428,2678.1,2677.9,0.56809785]
[1739758086280,2.428,2678.2,2677.9,0.56809785]
[1739758086485,2.428,2678.2,2678.1,3.95449]
[1739758086684,2.428,2678.2,2678.1,0.74669]
[1739758087087,2.428,2678.2,2678.1,3.95449]
[1739758097688,3.95436,2678.6,2678.5,0.74658]
[1739758097892,6.37636,2678.6,2678.5,0.74658]
[1739758098097,5.6298,2678.6,2678.5,0.74658]
[1739758098299,0.74659,2678.5,2678.4,0.74659]
[1739758098600,0.7466,2678.5,2678.4,0.7466]
[1739758098897,8.56352753,2678.6,2677.9,0.00559785]
[1739758099202,0.74672,2678.0,2677.9,0.00559785]
[1739758099499,43.97072,2678.0,2677.9,0.00559785]
[1739758099693,3.17072,2678.0,2677.9,0.75233785]
[1739758099884,3.17072,2678.0,2677.9,0.00559785]
[1739758100088,3.73932,2678.0,2677.9,0.00559785]
[1739758100291,6.94712,2678.0,2677.9,0.00559785]
[1739758100500,0.7468,2677.7,2677.4,5.10387]
[1739758100799,5.35772753,2677.6,2677.4,4.54506]
[1739758100991,5.35772753,2677.6,2677.4,4.54507]
[1739758101191,5.35772753,2677.6,2677.4,3.7982]
[1739758101391,5.35772753,2677.6,2677.1,0.30014222]
[1739758101701,1.87827,2677.5,2677.2,0.74692]
[1739758101997,1.87827,2677.5,2677.1,0.0037319]
[1739758101998,1.1314,2677.5,2677.1,0.0037319]
[1739758102302,2.93372753,2677.3,2677.1,0.0037319]
[1739758102493,2.425,2677.2,2677.1,0.0037319]
[1739758104085,2.425,2677.2,2677.1,0.7507019]
[1739758104492,2.425,2677.2,2677.1,0.0037319]
[1739758105492,2.425,2677.2,2677.1,0.7507019]
[1739758106304,2.425,2677.2,2677.1,0.0037319]
[1739758106898,2.425,2677.2,2677.1,0.7507019]
[1739758110506,3.17194,2677.2,2677.1,0.0037319]
[1739758113611,0.74706,2676.8,2676.6,0.7471]
[1739758113812,6.51802753,2676.7,2676.6,0.7471]
[1739758114010,7.11162753,2676.7,2676.2,5.07582]
[1739758114204,2.93372753,2676.4,2676.3,0.74717]
[1739758114602,3.51062753,2676.7,2676.2,3.2078]
[1739758114913,2.423,2676.6,2676.5,0.74714]
[1739758116609,8.423,2676.6,2676.3,0.74717]
[1739758116812,2.93372753,2676.4,2676.3,0.74719]
[1739758117209,2.93372753,2676.4,2676.2,3.955]
[1739758117607,2.93372753,2676.4,2676.3,0.74719]
[1739758117809,2.93372753,2676.4,2676.2,3.95501]
[1739758118010,2.93372753,2676.4,2676.3,0.74719]
[1739758118311,2.93372753,2676.4,2676.0,0.74725]
[1739758118312,0.74719,2676.3,2676.0,0.74725]
[1739758118615,0.74719,2676.3,2675.9,3.2078]
[1739758118616,2.438,2676.2,2676.1,0.74725]
[1739758119206,6.14152753,2676.4,2676.1,0.74725]
[1739758119515,3.2078,2676.4,2676.3,0.74719]
[1739758119816,2.441,2676.4,2676.3,0.74719]
[1739758120116,5.37472753,2676.4,2676.3,0.74719]
[1739758122610,2.441,2676.4,2676.3,0.74719]